[Event "Vugar Gashimov Memorial Blitz 2024"]
[Site "Shusha"]
[Date "2024.09.28"]
[Round "2.1"]
[White "Mamedyarov, Shakhriyar"]
[Black "Mamedov, Rauf"]
[Result "1-0"]
[ECO "B06"]
[WhiteElo "2733"]
[BlackElo "2637"]
[Annotator "TA"]
[PlyCount "37"]
[EventDate "2024.09.28"]
[EventType "tourn"]
[EventCountry "AZE"]
[SourceTitle "playchess.com"]
[Source "ChessBase"]
[SourceQuality "1"]
[TimeControl "180+2"]

{[%evp 9,37,30,35,33,64,35,43,29,28,26,43,33,49,38,74,16,116,118,111,123,166,161,296,283,299,299,314,310,467,516]} 1. d4 {[%emt 0:00:00]} g6 {[%emt 0:00:01]} 2. e4 {[%emt 0:00:03][%cal Be2e4,Be4e5][%mdl 32]} Bg7 {[%emt 0:00:01]} 3. Nf3 {[%emt 0:00:01]} a6 {[%emt 0:00:01]} 4. a4 {[%emt 0:00:02]} d6 {[%emt 0:00:13]} 5. Bc4 {[%emt 0:00:02]} Nf6 {[%emt 0:00:12]} 6. Qe2 {[%emt 0:00:01]} c6 {[%emt 0:00:23]} 7. e5 {[%emt 0:00:08]} Nd5 {[%emt 0:00:10]} 8. h3 {[%emt 0:00:15] White is slightly better.} O-O {[%emt 0:00:17]} 9. O-O {[%emt 0:00:02]} Nc7 {[%emt 0:00:15]} 10. c3 {[%emt 0:00:29] Black is weak on the dark squares} b5 {[%emt 0:00:07]} 11. Bd3 {[%emt 0:00:04]} bxa4 {[%emt 0:00:09]} 12. Rxa4 {[%emt 0:00:03]} (12. Nbd2 $16) 12... c5 {[%emt 0:00:03]} (12... Nd7 $1 $11) 13. dxc5 $16 {[%emt 0:00:14] White has more active pieces.} dxc5 {[%emt 0:00:29]} 14. Rd1 $36 {[%emt 0:00:01][%cal Od3g6][%mdl 2048] aiming for Bxg6! Keeping Black busy.} Qe8 {[%emt 0:00:14] [#]} 15. Rh4 {[%emt 0:00:03]} a5 {[%emt 0:00:21]} (15... Nc6 $142 16. Bh6 Bxh6) 16. Ng5 $18 {[%emt 0:00:03][%cal Bf3g5,Bg5e4,Be4g3,Bg3h5][%mdl 32]} h6 {[%emt 0:00:11]} 17. Ne4 {[%emt 0:00:20][%csl LRc5,LRh6]} h5 {[%emt 0:00:24]} 18. Ng3 {[%emt 0:00:01][%cal Og3h5] Hoping for Nxh5!} ({Less strong is} 18. Nxc5 Nd7 19. Nxd7 Bxd7 $16) 18... Ne6 {[%emt 0:00:03] [#]} (18... Ba6 {was necessary.} 19. Bxa6 Nbxa6 20. Nxh5 Ne6) 19. Nxh5 $1 {[%emt 0:00:04][%mdl 512] Weighted Error Value: White=0.09 (flawless) /Black=0.46.  Mistake:       	White=1     	Black=3      Inaccurate:     	White=1     	Black=3      OK:         	White=9     	Black=2      Best:        	---       	Black=1} 1-0

[Event "Vugar Gashimov Memorial Blitz 2024"]
[Site "Shusha"]
[Date "2024.09.28"]
[Round "2.2"]
[White "Aravindh, Chithambaram VR."]
[Black "Rapport, Richard"]
[Result "1-0"]
[ECO "B13"]
[WhiteElo "2698"]
[BlackElo "2715"]
[Annotator "TA"]
[PlyCount "53"]
[EventDate "2024.09.28"]
[EventType "tourn"]
[EventCountry "AZE"]
[SourceTitle "playchess.com"]
[Source "ChessBase"]
[SourceQuality "1"]
[TimeControl "180+2"]

{[%evp 14,53,25,18,33,24,31,46,28,26,32,26,24,29,33,8,28,9,63,58,60,35,95,87,108,145,225,218,292,304,419,182,525,463,464,273,263,248,1177,743,1911,1866]} 1. e4 {[%emt 0:00:02]} c6 {[%emt 0:00:00]} 2. d4 {[%emt 0:00:02]} d5 {[%emt 0:00:01]} 3. exd5 {[%emt 0:00:02]} cxd5 {[%emt 0:00:01]} 4. Bd3 {[%emt 0:00:02]} Nf6 {[%emt 0:00:01]} 5. h3 {[%emt 0:00:04]} Nc6 {[%emt 0:00:02]} 6. c3 {[%emt 0:00:01]} e5 {[%emt 0:00:01]} 7. dxe5 {[%emt 0:00:03]} Nxe5 {[%emt 0:00:01]} 8. Nf3 {[%emt 0:00:02]} Bd6 {[%emt 0:00:09]} 9. O-O {[%emt 0:00:07] Nxe5 would now be deadly.} O-O {[%emt 0:00:02]} 10. Nxe5 {[%emt 0:00:21]} Bxe5 {[%emt 0:00:02] White is slightly better.} 11. Nd2 {[%emt 0:00:02]} Bc7 {[%emt 0:00:05]} 12. Nf3 {[%emt 0:00:02]} Ne4 {[%emt 0:00:10]} 13. Be3 {[%emt 0:00:04]} Re8 {[%emt 0:00:06]} 14. Re1 {[%emt 0:00:13]} h6 {[%emt 0:00:17]} 15. Qb3 {[%emt 0:00:09]} a5 {[%emt 0:00:16]} (15... Qd6 $11) 16. Rad1 $14 {[%emt 0:00:07]} a4 {[%emt 0:00:03]} 17. Qc2 {[%emt 0:00:03][%cal Oe3h6]} Qf6 {[%emt 0:00:12]} (17... Bf5 $14) 18. c4 $1 $16 {[%emt 0:00:41][%cal Bc3c4,Bc4d5,Bd5d6][%mdl 32]} Ba5 {[%emt 0:00:38]} 19. Bd4 $1 {[%emt 0:00:17]} (19. Qxa4 Bxh3 20. b4 Bc7 $17) 19... Qf4 {[%emt 0:00:02] [#]} (19... Qc6 $16) 20. Re3 $1 $18 {[%emt 0:00:14]} (20. Qxa4 $2 Bxh3 21. Re3 Bxg2 (21... Be1 22. Qxe8+ Rxe8 23. Rdxe1 $15) 22. Kxg2 Qg4+ 23. Kf1 Bd2 24. Bxe4 Bxe3 $19 (24... Rxa4 $2 25. Bf5 $19) (24... Rxa4 $2 25. Bf5 $19)) 20... Bf5 {[%emt 0:00:07]} 21. cxd5 {[%emt 0:00:07]} ({Stronger than} 21. Qxa4 Bd2 (21... Be1 22. Qxe8+ Rxe8 23. Rdxe1 $11) 22. Qc2 Bxe3 23. Bxe3 Qc7 $11) 21... Rac8 {[%emt 0:00:18]} 22. Qe2 {[%emt 0:00:01]} (22. Qxa4 $142 Ra8 23. Bxe4 Rxe4 24. b4) 22... Bg6 $2 {[%emt 0:00:33] [#]} (22... Nf6 {is tougher.} 23. Be5 Bxd3 24. Qxd3 Qc4 25. Bxf6 Qxd3 26. Rxe8+ (26. Rexd3 gxf6 27. d6 Rc2 $18) (26. Rdxd3 Rxe3 27. fxe3 gxf6 $16) 26... Rxe8 27. Rxd3 gxf6) 23. d6 $1 {[%emt 0:00:08][%mdl 512] aiming for d7.} Rcd8 {[%emt 0:00:22] [#]} 24. Be5 {[%emt 0:00:02]} Rxe5 {[%emt 0:00:15]} 25. Nxe5 {[%emt 0:00:02]} Bh5 $2 {[%emt 0:00:01]} (25... Qxe5 26. Bxe4 Bb6 27. Bxb7 Bxe3) 26. g4 {[%emt 0:00:21]} Qxe5 {[%emt 0:00:06]} 27. Rxe4 {[%emt 0:00:04] Weighted Error Value: White=0.42/Black=0.63.  Mistake:       	White=2     	Black=5      Inaccurate:     	White=1     	Black=3      OK:         	White=3     	Black=3      Best:        	White=1     	Black=1      Strong:       	White=3     	---} 1-0

[Event "Vugar Gashimov Memorial Blitz 2024"]
[Site "Shusha"]
[Date "2024.09.28"]
[Round "2.3"]
[White "Suleymanli, Aydin"]
[Black "Abdusattorov, Nodirbek"]
[Result "0-1"]
[ECO "C84"]
[WhiteElo "2632"]
[BlackElo "2766"]
[Annotator "TA"]
[PlyCount "152"]
[EventDate "2024.09.28"]
[EventType "tourn"]
[EventCountry "AZE"]
[SourceTitle "playchess.com"]
[Source "ChessBase"]
[SourceQuality "1"]
[TimeControl "180+2"]

{[%evp 12,152,36,0,7,-8,34,36,26,3,41,34,37,-3,0,-41,-44,-44,-33,-38,-39,-49,-60,-55,-45,-46,0,-22,-22,-64,-64,-108,-73,-204,-191,-200,-198,-216,-216,-213,-202,-267,-216,-243,-233,-218,-172,-185,-206,-188,-201,-198,-173,-293,-271,-321,-289,-422,-368,-428,-222,-229,-222,-304,0,0,0,0,0,-35,-31,-49,0,0,0,-174,-171,-208,-228,-185,-237,-237,-237,-237,-125,-124,-124,-153,-120,-120,-87,-129,0,0,0,-14,-17,-68,-75,-100,0,-75,-75,-150,-106,-131,-131,-131,-131,-131,-131,-816,-795,-816,-816,-816,-816,-784,-707,-1023,-1004,-759,-205,-1091,-1092,-1071,-1011,-11473,-4694,-29968,-29969,-29956,-29952,-12828,-6621,-12831,-12832,-12833,-12830,-12837,-12832,-6122,-5854]} 1. e4 {[%emt 0:00:02]} e5 {[%emt 0:00:02]} 2. Nf3 {[%emt 0:00:02]} Nc6 {[%emt 0:00:02]} 3. Bb5 {[%emt 0:00:02]} a6 {[%emt 0:00:02]} 4. Ba4 {[%emt 0:00:02]} Nf6 {[%emt 0:00:00]} 5. O-O {[%emt 0:00:00]} Be7 {[%emt 0:00:00]} 6. d3 {[%emt 0:00:00]} d6 {[%emt 0:00:02]} 7. c4 {[%emt 0:00:02]} O-O {[%emt 0:00:02]} 8. Nc3 {[%emt 0:00:02]} Nd7 {[%emt 0:00:02]} 9. Be3 {[%emt 0:00:02]} Bf6 {[%emt 0:00:02] White is slightly better.} 10. h3 {[%emt 0:00:02]} g6 {[%emt 0:00:02]} 11. Nd5 {[%emt 0:00:02]} Bg7 {[%emt 0:00:21]} 12. b4 {[%emt 0:00:45]} Nd4 {[%emt 0:00:02]} 13. Nxd4 {[%emt 0:00:02]} exd4 {[%emt 0:00:02]} 14. Bd2 {[%emt 0:00:02]} c6 {[%emt 0:00:02]} 15. Nf4 {[%emt 0:00:02]} Ne5 {[%emt 0:00:16]} 16. Bc2 {[%emt 0:01:11]} f5 {[%emt 0:00:05] White must now prevent ...fxe4.} 17. f3 {[%emt 0:00:14]} Bd7 {[%emt 0:00:02]} 18. c5 {[%emt 0:00:02]} Qe7 {[%emt 0:00:02]} (18... fxe4 $15 {deserves consideration.} 19. fxe4 dxc5) 19. cxd6 {[%emt 0:00:17]} (19. exf5 $5 Bxf5 20. g4 $11) 19... Qxd6 {[%emt 0:00:27]} 20. Bb3+ {[%emt 0:00:01]} Kh8 {[%emt 0:00:01] Black is more active.} 21. Qc2 {[%emt 0:00:01]} b6 {[%emt 0:00:22] Inhibits Qc5.} (21... fxe4 {feels hotter.} 22. fxe4 Rf6 23. Rae1 Raf8) 22. Ne2 {[%emt 0:00:04]} (22. Rae1 $17 {was called for.}) 22... fxe4 $19 {[%emt 0:00:02]} 23. fxe4 {[%emt 0:00:01] [#]} Bxh3 $1 {[%emt 0:00:06][%mdl 512]} 24. Bf4 {[%emt 0:00:25]} (24. Rxf8+ Rxf8 25. Bf4 Bg4 $19) (24. gxh3 Nf3+) 24... Bg4 {[%emt 0:00:02]} 25. Qd2 {[%emt 0:00:11]} Bxe2 {[%emt 0:00:05]} 26. Qxe2 {[%emt 0:00:01]} Qxb4 {[%emt 0:00:01]} 27. Rac1 {[%emt 0:00:04]} Rxf4 {[%emt 0:00:05]} 28. Rxf4 {[%emt 0:00:02] White is weak on the dark squares} Bh6 {[%emt 0:00:01]} 29. g3 {[%emt 0:00:05]} Qe7 {[%emt 0:00:07]} (29... Bxf4 30. gxf4 Qe7 31. Rc2 $15) 30. Rcf1 {[%emt 0:00:02]} Bxf4 {[%emt 0:00:01]} 31. gxf4 {[%emt 0:00:01]} Nd7 {[%emt 0:00:01]} 32. e5 {[%emt 0:00:03]} (32. Qf2 {is a better defense.}) 32... Nc5 $1 {[%emt 0:00:05]} 33. e6 {[%emt 0:00:01]} Qf6 {[%emt 0:00:06]} 34. Qg4 {[%emt 0:00:11]} (34. Qf3 {keeps fighting.} Rc8 (34... Nxe6 $2 35. Qxc6 Rf8 36. Bxe6 $18) 35. Re1) 34... Re8 {[%emt 0:00:02]} (34... Nxd3 35. Qf3 Nb4 36. Qe4 $17 (36. a3 $2 Nd5 $19)) 35. f5 {[%emt 0:00:01]} Rg8 {[%emt 0:00:03]} (35... Nxd3 36. fxg6 Qxg6 37. Qxg6 hxg6 38. Rf7) (35... Nxb3 $142 36. axb3 c5 (36... gxf5 $2 37. Rxf5 Qg6 38. Qxg6 $19)) 36. e7 {[%emt 0:00:02]} Nxb3 {[%emt 0:00:01]} (36... gxf5 37. Qxg8#) 37. axb3 {[%emt 0:00:01]} Qxe7 {[%emt 0:00:27]} (37... gxf5 $2 38. Qxg8+ Kxg8 39. e8=Q+ (39. e8=B $2 Kf8 $19) 39... Qf8 40. Qxc6 $18) (37... h5 $19 38. Qf4 gxf5+ 39. Kf2 Qxe7 40. Qxd4+ Kh7) 38. Qxd4+ {[%emt 0:00:02][%mdl 4096] Endgame. KQR-KQR} Qg7 {[%emt 0:00:02]} 39. f6 {[%emt 0:00:02]} Qf7 {[%emt 0:00:00]} 40. Re1 {[%emt 0:00:00]} Rf8 {[%emt 0:00:02]} (40... Qxb3 41. f7+ Rg7 42. Re8#) 41. Re6 $1 {[%emt 0:00:04]} c5 {[%emt 0:00:11]} (41... Qxe6 42. f7+) (41... a5 $15) 42. Qe5 $11 {[%emt 0:00:01]} Kg8 {[%emt 0:00:00]} 43. Qd5 $2 {[%emt 0:00:03]} (43. Rxb6 $11 {and White stays safe.} Rd8 44. Qxc5) 43... a5 {[%emt 0:00:04]} 44. Qd6 {[%emt 0:00:04]} b5 $1 {[%emt 0:00:01]} 45. Qe5 {[%emt 0:00:01]} a4 {[%emt 0:00:00]} 46. bxa4 {[%emt 0:00:01]} bxa4 {[%emt 0:00:01]} 47. Ra6 {[%emt 0:00:04] [#]} a3 {[%emt 0:00:02]} 48. Qxc5 $17 {[%emt 0:00:01]} a2 $1 {[%emt 0:00:01][%cal Of7f6]} 49. Qe5 {[%emt 0:00:03]} Qd7 {[%emt 0:00:14]} 50. Rxa2 {[%emt 0:00:03]} Qg4+ {[%emt 0:00:02]} (50... Qxd3 $6 51. f7+ Rxf7 52. Ra8+ Rf8 53. Qe6+ Kg7 54. Qe5+ Kg8 55. Qe6+ Kg7 56. Qe7+ (56. Qe5+ Kg8 $11) 56... Rf7 57. Qe5+ Kh6 58. Qh2+ Kg5 59. Qg2+ Kf6 60. Qb2+ Ke6 (60... Kg5 61. Qg2+ Kf6 62. Qb2+ Ke6 63. Qa2+ Kf6 64. Ra6+ Kg5 65. Qg2+ Kh5 66. Qh2+ Kg5 67. Qg2+ Kf4 68. Ra4+ Ke5 69. Qb2+ Kd5 70. Ra5+ Kc6 71. Qc1+ Kb7 72. Qb2+ Kc6 73. Qc1+ Kb7 74. Qb2+ Kc6 $11) 61. Qa2+ Kf6 62. Ra6+ Kg7 63. Qb2+ Kh6 64. Qh2+ Kg5 65. Qg2+ Kh6 66. Qh2+ Kg5 67. Qg2+ Kh6 68. Qh2+ $11) 51. Rg2 {[%emt 0:00:02] [#]} Qd7 {[%emt 0:00:20]} (51... Qd1+ $1 $17 52. Kh2 Qf3 53. Qe6+ Kh8) 52. Rf2 $11 {[%emt 0:00:02]} Kf7 {[%emt 0:00:18]} (52... Qxd3 53. f7+ Rxf7 54. Qe8+ Kg7 55. Qxf7+ Kh6 56. Qf4+ g5 57. Qf6+ Kh5 58. Rh2+ Kg4 59. Rg2+) 53. d4 {[%emt 0:00:01]} Re8 {[%emt 0:00:00]} 54. Qf4 {[%emt 0:00:01] Against Qg4+} (54. Qg3 $11) 54... Re1+ $1 $15 {[%emt 0:00:02]} 55. Kh2 {[%emt 0:00:01] Hoping for Rc2.} Re6 {[%emt 0:00:06]} (55... Qc6 $17 {( -> ...Qh1+)} 56. Rf3 h5) 56. Rc2 {[%emt 0:00:02]} (56. Qh6 $11 {keeps the balance.} Qc7+ (56... Rxf6 57. Qxh7+ Ke6 58. Rxf6+ Kxf6 59. Qxd7 g5 60. Kg3 Kg6 61. Kg4) 57. Kg2 Qc6+ (57... Rxf6 58. Qxh7+ Ke6 59. Rxf6+ Kxf6 60. Qxc7 Ke6 61. Qe5+ Kd7 62. d5) 58. Kh2 Rxf6 59. Qxh7+ (59. Rxf6+ Kxf6 60. Qxh7 Qc2+ 61. Kg1 Qd1+ 62. Kg2 Qd2+ 63. Kf1 Qd1+ 64. Kg2 Qe2+ 65. Kg1 Qg4+ 66. Kh2 Qe2+ 67. Kg1 Qg4+ 68. Kh1 Qf3+ 69. Kg1 Qg3+ 70. Kh1 Qe1+ 71. Kg2 Qe4+ 72. Kh2 Qf4+ 73. Kh1 Qf3+ 74. Kh2 Qf2+ 75. Kh3 Qf5+ 76. Kg3 Qd3+ 77. Kh2 Qe2+ 78. Kg3 Qd3+ 79. Kg2 Qe2+ 80. Kg3 Qe3+ 81. Kg2 Qe4+ 82. Kg3 Qe1+ 83. Kf4 Qf2+ 84. Ke4 Qe2+ 85. Kd5 Qb5+ 86. Ke4 Qb1+ 87. Ke3 Qf5 $11) 59... Kf8 60. Qh6+ (60. Rxf6+ Qxf6 61. Qh6+ Kf7 $11) 60... Kg8 61. Rxf6 Qxf6 62. Qd2) 56... Rxf6 $17 {[%emt 0:00:05] Black keeps a firm grip on the game.} 57. Qe5 {[%emt 0:00:00]} ({White should try} 57. Qc7 Qxc7+ 58. Rxc7+ Kg8 59. d5) 57... Qd6 {[%emt 0:00:02] Threatens to win with ...Qxe5+.} 58. Rc7+ {[%emt 0:00:02]} Kg8 {[%emt 0:00:00] ...Qxe5+ would now be deadly.} 59. Rc8+ {[%emt 0:00:03]} Kg7 {[%emt 0:00:01]} 60. Rc7+ {[%emt 0:00:01]} Kh6 {[%emt 0:00:00]} 61. Kg3 $2 {[%emt 0:00:02][%mdl 8192]} (61. Re7 $17) 61... Re6 $19 {[%emt 0:00:03]} 62. Qxd6 {[%emt 0:00:03]} Rxd6 {[%emt 0:00:00] KR-KR} 63. Rc4 {[%emt 0:00:01]} g5 {[%emt 0:00:04]} 64. Kf3 {[%emt 0:00:02]} Kh5 {[%emt 0:00:00]} 65. Ke4 {[%emt 0:00:01] [#]} g4 $1 {[%emt 0:00:01]} 66. d5 {[%emt 0:00:03]} Kh4 $2 {[%emt 0:00:04]} (66... Rd8 67. Rc1 Kg5) 67. Rc6 $2 {[%emt 0:00:02]} (67. Ke5 Rd8 68. d6) 67... Rd7 {[%emt 0:00:05] aiming for ...h5.} 68. Rh6+ {[%emt 0:00:04]} Kg5 {[%emt 0:00:01]} 69. Re6 {[%emt 0:00:01]} h5 {[%emt 0:00:01]} 70. Re5+ {[%emt 0:00:05]} Kh4 {[%emt 0:00:02]} 71. Rf5 {[%emt 0:00:01]} g3 {[%emt 0:00:01]} 72. Kf3 {[%emt 0:00:01]} Rg7 {[%emt 0:00:01] Black is clearly winning.} 73. d6 {[%emt 0:00:04]} g2 {[%emt 0:00:07]} 74. d7 {[%emt 0:00:03]} g1=N+ {[%emt 0:00:01]} ({Weaker is} 74... g1=B 75. d8=Q+ (75. d8=B+ Rg5 76. Rxg5 Bd4 77. Rg3+ Bf6 78. Bxf6#) (75. d8=B+ Rg5 76. Rxg5 Bd4 77. Rg3+ Bf6 78. Bxf6#)) 75. Kf2 {[%emt 0:00:02]} Nh3+ {[%emt 0:00:01]} 76. Kf3 {[%emt 0:00:02]} Rxd7 {[%emt 0:00:01] Weighted Error Value: White=0.31/Black=0.28 (precise) .  Loses game:     	White=2     	---        Missed win:     	---       	Black=1      Mistake:       	White=6     	Black=6      Inaccurate:     	White=8     	Black=3      OK:         	White=15    	Black=14     Best:        	White=6     	Black=10     Strong:       	White=1     	Black=4      Brilliant:      	---       	Black=1} 0-1

[Event "Vugar Gashimov Memorial Blitz 2024"]
[Site "Shusha"]
[Date "2024.09.28"]
[Round "2.4"]
[White "Nepomniachtchi, Ian"]
[Black "Artemiev, Vladislav"]
[Result "1/2-1/2"]
[ECO "C84"]
[WhiteElo "2755"]
[BlackElo "2701"]
[Annotator "TA"]
[PlyCount "132"]
[EventDate "2024.09.28"]
[EventType "tourn"]
[EventCountry "AZE"]
[SourceTitle "playchess.com"]
[Source "ChessBase"]
[SourceQuality "1"]
[TimeControl "180+2"]

{[%evp 56,132,-275,-300,-307,-364,-293,-401,-402,-397,-299,-308,-301,-366,-366,-377,-370,-346,-335,-310,-234,-227,-231,-287,-251,-378,-408,-374,-262,-237,-200,-223,-92,-164,-18,-40,-27,-27,0,-27,0,-27,-27,-27,-27,-33,-28,-33,0,-33,-28,-28,-5,-5,0,0,0,0,0,0,0,0,0,0,0,0,0,0,0,0,0,0,0,0,0,0,0,0,0]} 1. e4 {[%emt 0:00:01]} e5 {[%emt 0:00:02]} 2. Nf3 {[%emt 0:00:02]} Nc6 {[%emt 0:00:01]} 3. Bb5 {[%emt 0:00:02]} Nf6 {[%emt 0:00:02]} 4. d3 {[%emt 0:00:11]} d6 {[%emt 0:00:01]} 5. O-O {[%emt 0:00:07]} a6 {[%emt 0:00:01]} 6. Ba4 {[%emt 0:00:08]} b5 {[%emt 0:00:02]} 7. Bb3 {[%emt 0:00:01]} Na5 {[%emt 0:00:12]} 8. Nc3 {[%emt 0:00:04]} Be7 {[%emt 0:00:12]} 9. Ne2 {[%emt 0:00:10]} O-O {[%emt 0:00:09]} 10. Ng3 {[%emt 0:00:01]} c5 {[%emt 0:00:17]} 11. c3 {[%emt 0:00:01]} Nxb3 {[%emt 0:00:03]} 12. axb3 {[%emt 0:00:01]} Re8 {[%emt 0:00:07] C84: Closed Ruy Lopez: Unusual White 6th moves.} 13. Re1 {[%emt 0:00:05]} h6 {[%emt 0:00:28]} 14. d4 {[%emt 0:00:02]} cxd4 $146 {[%emt 0:00:50]} ({Predecessor:} 14... Qc7 15. d5 Bf8 16. h3 g6 17. Be3 Bg7 18. Nh2 h5 19. Nf3 Nh7 20. Qd2 Qe7 {½-½ Karacan,C (2009)-Dedebas,E (2322) TUR-chT 1st League 2017 (7.2)}) 15. cxd4 {[%emt 0:00:01]} Bf8 {[%emt 0:00:13]} 16. d5 {[%emt 0:00:36]} a5 {[%emt 0:00:28]} 17. h3 {[%emt 0:00:02]} Bd7 {[%emt 0:00:01]} 18. Be3 {[%emt 0:00:05]} a4 {[%emt 0:00:14]} 19. Qd3 {[%emt 0:00:14]} axb3 {[%emt 0:00:02]} 20. Nd2 {[%emt 0:00:09]} Ra4 {[%emt 0:00:05]} 21. Ne2 {[%emt 0:00:13]} Qc7 {[%emt 0:00:06]} 22. Rac1 {[%emt 0:00:08]} Qb7 {[%emt 0:00:02]} 23. Nc3 {[%emt 0:00:03]} Raa8 {[%emt 0:00:01]} 24. Nxb3 {[%emt 0:00:04]} b4 {[%emt 0:00:01]} 25. Ne2 {[%emt 0:00:09]} Bb5 {[%emt 0:00:00]} 26. Qb1 {[%emt 0:00:01]} Qa6 {[%emt 0:00:01]} 27. Qc2 {[%emt 0:00:46]} Bd3 {[%emt 0:00:01]} 28. Qd1 {[%emt 0:00:02]} Bxe4 {[%emt 0:00:04]} ({Not} 28... Nxe4 29. Rc6 Bxe2 (29... Qb5 30. Ned4 $17) 30. Qxe2 $17) 29. Ng3 {[%emt 0:00:04]} Bxd5 {[%emt 0:00:02]} 30. Nd2 {[%emt 0:00:00]} Qd3 {[%emt 0:00:02]} 31. Nh5 {[%emt 0:00:08]} Nxh5 {[%emt 0:00:03]} 32. Qxh5 {[%emt 0:00:01]} Qg6 {[%emt 0:00:06]} 33. Qxg6 {[%emt 0:00:02]} fxg6 {[%emt 0:00:01]} 34. Nc4 {[%emt 0:00:00]} Bxc4 {[%emt 0:00:04]} 35. Rxc4 {[%emt 0:00:01]} d5 {[%emt 0:00:02]} 36. Rc6 {[%emt 0:00:00]} d4 {[%emt 0:00:03]} 37. Bd2 {[%emt 0:00:00]} Ra2 {[%emt 0:00:01]} 38. Rb1 {[%emt 0:00:01]} g5 {[%emt 0:00:02]} 39. Rb6 {[%emt 0:00:00]} Ra4 {[%emt 0:00:04]} 40. b3 {[%emt 0:00:01]} (40. Rb5 $142) 40... Ra2 $19 {[%emt 0:00:01]} 41. Bxb4 {[%emt 0:00:01]} Bxb4 {[%emt 0:00:01]} 42. Rxb4 {[%emt 0:00:00]} Rf8 {[%emt 0:00:02]} 43. Rf1 {[%emt 0:00:01]} d3 {[%emt 0:00:03]} (43... Rb2 $19 {has better winning chances. ...Kh7 would now be deadly.} 44. Rc4 Rb8 (44... Rxb3 $2 45. Rc5 $19)) 44. Re4 {[%emt 0:00:03] [#]} (44. f3 $17 {was called for.}) 44... Rb8 {[%emt 0:00:03]} (44... Rc2 $1 $19 {aiming for ...d2.} 45. Rxe5 d2) 45. b4 {[%emt 0:00:02]} Rb2 {[%emt 0:00:02]} 46. Rd1 {[%emt 0:00:01]} d2 {[%emt 0:00:02]} (46... R8xb4 {simplifies} 47. Rxb4 Rxb4 48. Rxd3 Kf7) 47. Kf1 {[%emt 0:00:02]} R8xb4 {[%emt 0:00:01]} (47... R2xb4 48. Rxe5 Rd8 49. Rc5 $11) 48. Rxb4 {[%emt 0:00:01]} Rxb4 {[%emt 0:00:01]} 49. Rxd2 {[%emt 0:00:00]} Kf7 {[%emt 0:00:01]} 50. Rd6 {[%emt 0:00:01]} Ke7 {[%emt 0:00:02]} 51. Rg6 {[%emt 0:00:01]} Kf7 {[%emt 0:00:00]} 52. Ra6 {[%emt 0:00:01]} h5 {[%emt 0:00:03]} 53. g3 {[%emt 0:00:00]} Rb3 {[%emt 0:00:04]} 54. Kg2 {[%emt 0:00:02]} e4 {[%emt 0:00:03]} 55. Ra7+ {[%emt 0:00:02]} Kg6 {[%emt 0:00:01]} 56. Ra6+ {[%emt 0:00:01]} Kh7 {[%emt 0:00:02]} 57. Ra5 {[%emt 0:00:01]} Kh6 {[%emt 0:00:03]} 58. Ra6+ {[%emt 0:00:01]} g6 {[%emt 0:00:01]} 59. Re6 {[%emt 0:00:01]} Rb4 {[%emt 0:00:00]} 60. Re7 {[%emt 0:00:01]} Rc4 {[%emt 0:00:03]} 61. Kf1 {[%emt 0:00:01]} Rc1+ {[%emt 0:00:03]} 62. Kg2 {[%emt 0:00:00]} Re1 {[%emt 0:00:01]} 63. Kh2 {[%emt 0:00:01]} g4 {[%emt 0:00:03]} 64. h4 {[%emt 0:00:02]} Re2 {[%emt 0:00:02]} 65. Kg2 {[%emt 0:00:01]} Re1 {[%emt 0:00:01]} 66. Kh2 {[%emt 0:00:01]} Rf1 {[%emt 0:00:02]} 1/2-1/2

[Event "Vugar Gashimov Memorial Blitz 2024"]
[Site "Shusha"]
[Date "2024.09.28"]
[Round "3.1"]
[White "Artemiev, Vladislav"]
[Black "Mamedyarov, Shakhriyar"]
[Result "1/2-1/2"]
[ECO "E05"]
[WhiteElo "2701"]
[BlackElo "2733"]
[Annotator "TA"]
[PlyCount "66"]
[EventDate "2024.09.28"]
[EventType "tourn"]
[EventCountry "AZE"]
[SourceTitle "playchess.com"]
[Source "ChessBase"]
[SourceQuality "1"]
[TimeControl "180+2"]

{[%evp 13,66,35,53,66,68,56,82,61,60,51,57,51,59,20,37,9,62,51,91,96,85,85,91,61,58,59,58,39,46,43,46,33,37,0,23,18,31,41,47,32,68,0,0,0,0,0,0,0,0,-4,0,0,0,0,0]} 1. Nf3 {[%emt 0:00:03]} d5 {[%emt 0:00:00]} 2. g3 {[%emt 0:00:02]} Nf6 {[%emt 0:00:01]} 3. Bg2 {[%emt 0:00:01]} e6 {[%emt 0:00:01]} 4. c4 {[%emt 0:00:06]} Be7 {[%emt 0:00:01]} 5. d4 {[%emt 0:00:03]} O-O {[%emt 0:00:03]} 6. Nc3 {[%emt 0:00:02]} a6 {[%emt 0:00:20]} 7. O-O {[%emt 0:00:14]} dxc4 {[%emt 0:00:11]} 8. Ne5 {[%emt 0:00:01]} Nd5 {[%emt 0:00:33]} 9. Nxc4 {[%emt 0:00:03]} b6 {[%emt 0:00:02]} 10. Nxd5 {[%emt 0:00:05] White is better.} exd5 {[%emt 0:00:01]} 11. Ne5 {[%emt 0:00:02] Prevents Nc6} Bb7 {[%emt 0:00:01]} 12. Qb3 {[%emt 0:00:27]} Nd7 {[%emt 0:00:23]} 13. Bf4 {[%emt 0:00:16]} (13. Bxd5 Bxd5 14. Qxd5 Nxe5 15. Qxd8 (15. Qxe5 Bf6 $11) 15... Rfxd8) 13... Nxe5 {[%emt 0:00:04]} 14. Bxe5 {[%emt 0:00:03]} Bd6 {[%emt 0:00:02]} (14... Re8 $11) 15. Rfd1 {[%emt 0:00:25] White is much more active.} ({Much weaker is} 15. Bxd5 Bxd5 16. Qxd5 Bxe5 17. Qxe5 Re8 $11) 15... Re8 {[%emt 0:00:56]} 16. Bxd5 {[%emt 0:00:04]} Bxd5 {[%emt 0:00:01]} 17. Qxd5 {[%emt 0:00:01]} Qg5 {[%emt 0:00:12]} 18. Rac1 {[%emt 0:00:27]} Bxe5 {[%emt 0:00:07]} 19. dxe5 {[%emt 0:00:01]} Qxe5 {[%emt 0:00:02]} 20. e3 {[%emt 0:01:04] Threatens to win with Qxe5.} Qxd5 {[%emt 0:00:05]} 21. Rxd5 $14 {[%emt 0:00:01][%mdl 4096] Endgame. KRR-KRR} Re7 {[%emt 0:00:01]} 22. g4 {[%emt 0:00:08][%cal Bg3g4,Bg4g5,Bg5h6][%mdl 32]} Kf8 {[%emt 0:00:04]} 23. Rh5 {[%emt 0:00:02]} h6 {[%emt 0:00:13]} 24. g5 {[%emt 0:00:00]} Kg8 {[%emt 0:00:00]} 25. gxh6 {[%emt 0:00:02]} g6 {[%emt 0:00:01]} 26. Rh4 {[%emt 0:00:06]} Rd8 {[%emt 0:00:02]} 27. Rhc4 {[%emt 0:00:02]} ({Better is} 27. h7+ $14 Kh8 28. b4) 27... c5 $11 {[%emt 0:00:01] The position is equal.} 28. b4 {[%emt 0:00:00]} cxb4 {[%emt 0:00:02]} 29. Rxb4 {[%emt 0:00:01]} Rd6 {[%emt 0:00:15]} 30. Rc8+ {[%emt 0:00:01]} Kh7 {[%emt 0:00:00]} 31. Ra8 {[%emt 0:00:02]} b5 {[%emt 0:00:01]} 32. a4 {[%emt 0:00:05]} Rb7 {[%emt 0:00:12]} 33. axb5 {[%emt 0:00:01]} axb5 {[%emt 0:00:01] Weighted Error Value: White=0.14 (very precise) /Black=0.10 (very precise) .  Mistake:       	White=1     	Black=1      Inaccurate:     	White=4     	Black=3      OK:         	White=3     	Black=8      Best:        	White=1     	Black=3} 1/2-1/2